Cogmind - Beta 14 @@@ ROGUE MODE // 2024.11.01 @ 19:58:52 Player: weedlord420 Result: Destroyed by G-34 Mercenary with Small Laser Performance ------------- Evolutions (0) 0 Regions Visited (2) 400 Robots Destroyed (28) 140 Value Destroyed (521) 521 Prototype IDs (0) 0 Alien Tech Used (0) 0 Bonus (0) 0 TOTAL SCORE: 1061 Bonus ------- None Cogmind --------- Core Integrity 0/250 Matter 300/300 Energy 244/250 System Corruption 0% Temperature Cool (32) Movement Treading (160) Location -10/Mines Parts ------- > --- POWER (1) -------- Ion Engine > --- PROPULSION (2) --- Light Treads Light Treads > --- UTILITY (2) ------ Heat Sink Large Storage Unit > --- WEAPON (2) ------- Beam Cannon Beam Cannon > --- INVENTORY (15) --- Ion Engine Light Nuclear Core Heat Sink Structural Scanner Hacking Suite Assault Rifle Assault Rifle Datajack Peak State ------------ > --- POWER ------------ Ion Engine > --- PROPULSION ------- Light Treads Light Treads > --- UTILITY ---------- Small Storage Unit Targeting Computer > --- WEAPON ----------- Medium Laser Assault Rifle > --- INVENTORY -------- Ion Engine Compact Wheel Compact Wheel Heat Sink Structural Scanner Hacking Suite Assault Rifle Datajack [Rating: 8] Favorites ----------- Power Ion Engine Engine Ion Engine Propulsion Light Treads Treads Light Treads Wheel Compact Wheel Utility Targeting Computer Device Heat Sink Storage Small Storage Unit Processor Targeting Computer Weapon Assault Rifle Energy Gun Medium Laser Energy Cannon Beam Cannon Ballistic Gun Assault Rifle Build | -11 -10 -10 ------- Run | Yrd Mat Min Slots Evolved . | . . . Power . | . . . Propulsion . | . . . Utility . | . . . Weapon . | . . . Parts Attached 17 | 5 11 1 Power 3 | 1 2 . Engine 3 | 1 2 . Core . | . . . Reactor . | . . . Propulsion 6 | 2 4 . Treads 4 | . 4 . Leg . | . . . Wheel 2 | 2 . . Hover . | . . . Flight . | . . . Utility 4 | 1 2 1 Device 1 | . . 1 Storage 2 | 1 1 . Processor 1 | . 1 . Hackware . | . . . Protection . | . . . Artifact . | . . . Weapon 4 | 1 3 . Energy Gun 1 | . 1 . Energy Cannon 2 | . 2 . Ballistic Gun 1 | 1 . . Ballistic Cannon . | . . . Launcher . | . . . Special Weapon . | . . . Impact Weapon . | . . . Slashing Weapon . | . . . Piercing Weapon . | . . . Special Melee Weapon . | . . . Unidentified Prototypes . | . . . Parts Lost 3 | . 2 1 Power 1 | . 1 . Propulsion . | . . . Utility 1 | . . 1 Weapon 1 | . 1 . Highest Loss Streak 1 | . 1 1 To Critical Strikes . | . . . Average Slot Usage (%) 98 | . 99 95 Engine 14 | . 14 14 Treads 26 | . 25 28 Wheel 1 | . 2 . Device 2 | . . 9 Storage 14 | . 14 14 Processor 10 | . 13 . Energy Gun 9 | . 11 . Energy Cannon 9 | . 3 28 Ballistic Gun 9 | . 12 . Peak Build Rating 8 | 5 8 8 Average Rating 7 | 3 7 7 On Entrance 4 | . 5 8 Naked Turns . | . . . Heaviest Build 32 | 12 31 32 Greatest Support 40 | 32 40 40 Greatest Overweight (x) . | . . . Average Overweight (x) . | . . . Largest Inventory Capacity 15 | 8 15 15 Average Capacity 10 | 7 8 15 Most Carried 8 | 5 8 8 Average Carried 6 | 3 6 7 Final Capacity 15 | 8 15 15 Final Carried 8 | 5 7 8 Class Distribution -------------------- 100% | Mutant Dominant Class ---------------- Mutant | -10/Materials Mutant | -10/Mines Resources | -11 -10 -10 ----------- Run | Yrd Mat Min Matter Collected 502 | 192 254 56 Remotely . | . . . Salvage Created 681 | . 543 138 Parts 60 | . 50 10 Haulers Intercepted . | . . . Recyclers Shooed . | . . . Parts Field Recycled . | . . . Retrieved Matter . | . . . Parts Self-Destructed . | . . . Prevented . | . . . Kills | -11 -10 -10 ------- Run | Yrd Mat Min Combat Hostiles Destroyed 20 | . 15 5 Guns 15 | . 15 . Cannons 5 | . . 5 Classes Destroyed 7 | . 7 . Worker 1 | . 1 . Builder 1 | . 1 . Tunneler 1 | . 1 . Operator 3 | . 3 . Watcher 2 | . 2 . Swarmer 12 | . 9 3 Grunt 8 | . 6 2 Best Kill Streak 4 | . 4 3 Combat Bots Only 3 | . 3 3 Max Kills in Single Turn 2 | . 2 1 Gunslinging 1 | . 1 . Exploded . | . . . Melee . | . . . Uniques/NPCs Destroyed . | . . . Combat | -11 -10 -10 -------- Run | Yrd Mat Min Hostile Shots Fired 96 | . 76 20 Missed 24 | . 18 6 Damage Taken 811 | . 692 119 Core 250 | . 223 27 Absorbed by Shields . | . . . Core Remaining (%) 100 | 100 . . Volleys Fired 58 | . 51 7 Largest 2 | . 2 2 Hottest 120 | . 120 120 Shots Fired 113 | . 99 14 Gun 95 | . 95 . Cannon 18 | . 4 14 Launcher . | . . . Special . | . . . Kinetic 49 | . 49 . Thermal 64 | . 50 14 Explosive . | . . . Electromagnetic . | . . . Robot Hit Streak 13 | . 13 9 Robot Miss Streak 4 | . 4 1 Penetration Max . | . . . Secondary Targets 3 | . 3 . Max Gunslinging Chain 1 | . 1 . Shots Hit Robots 71 | . 60 11 Core Hits 37 | . 31 6 Critical Kills . | . . . Critical Parts Destroyed . | . . . Critical Strikes 2 | . 2 . Burn 2 | . 2 . Melee Attacks . | . . . Impact . | . . . Slashing . | . . . Piercing . | . . . Sneak Attacks . | . . . Combat Hostiles . | . . . Follow-up Attacks . | . . . Damage Inflicted 1044 | . 829 215 Guns 795 | . 795 . Cannons 249 | . 34 215 Explosions . | . . . Melee . | . . . Ramming . | . . . Kinetic 398 | . 398 . Thermal 646 | . 431 215 Explosive . | . . . Electromagnetic . | . . . Impact . | . . . Slashing . | . . . Piercing . | . . . Highest Corruption . | . . . Average Corruption . | . . . Corruption Purged . | . . . Corruption Blocked . | . . . Overload Shots . | . . . Overflow Damage 4 | . 4 . Projectiles 4 | . 4 . Explosions . | . . . Melee . | . . . Knockbacks . | . . . Impact . | . . . Kinetic . | . . . Secondary . | . . . Self-Inflicted Damage . | . . . Shots . | . . . Rammed . | . . . Targets Rammed . | . . . Kicked . | . . . Crushed . | . . . Highest Temperature 180 | . 148 180 Average Temperature 42 | . 35 69 Received Heat Transfer 183 | . 165 18 Siege Activations . | . . . Robots Corrupted . | . . . Combat Hostiles . | . . . Parts Fried . | . . . Impact Corruptions . | . . . Robots Melted . | . . . Combat Hostiles . | . . . Parts Melted 2 | . 2 . Heat Transferred 1850 | . 1406 444 Parts Sabotaged . | . . . Parts Stolen . | . . . Parts Stripped . | . . . Power Chain Reactions . | . . . Alert | -11 -10 -10 ------- Run | Yrd Mat Min Peak Influence 210 | . 210 168 Initial 43 | . . 43 Average 107 | . 100 146 Maximum Alert Level 1 | . 1 . Low Security (%) 94 | 100 92 100 Level 1 5 | . 7 . Level 2 . | . . . Level 3 . | . . . Level 4 . | . . . Level 5 . | . . . High Security . | . . . Max Security . | . . . Squads Dispatched 3 | . 3 . Investigation . | . . . Extermination . | . . . Reinforcement 3 | . 3 . Assault . | . . . Garrison . | . . . Intercept . | . . . Searches Triggered . | . . . Construction Impeded . | . . . Haulers Reinforced . | . . . Active Scanning Responses . | . . . Cargo Convoy Interrupts . | . . . Stealth | -11 -10 -10 --------- Run | Yrd Mat Min Distress Signals 1 | . 1 . Communications Jammed . | . . . Distress Signals . | . . . Times Spotted 33 | . 27 6 Peak Tracking Total 5 | . 5 3 Tactical Retreats 1 | . 1 . Traps | -11 -10 -10 ------- Run | Yrd Mat Min Traps Triggered 1 | . 1 . Indirectly . | . . . Trap Hack Attempts . | . . . Triggered . | . . . Disarmed . | . . . Reprogrammed . | . . . Reused . | . . . Traps Extracted . | . . . Installed . | . . . Triggered . | . . . Machines | -11 -10 -10 ---------- Run | Yrd Mat Min Machines Disabled 1 | . . 1 Max in Single Turn 1 | . . 1 Machines Repaired . | . . . Machines Dismantled . | . . . Machines Sabotaged . | . . . Overloaded Fab Kills . | . . . Hacking | -11 -10 -10 --------- Run | Yrd Mat Min Machines Accessed 4 | . 4 . Terminals 4 | . 4 . Fabricators . | . . . Repair Stations . | . . . Recycling Units . | . . . Scanalyzers . | . . . Garrison Access . | . . . Total Hacks 13 | . 13 . Successful 5 | . 5 . Failed 8 | . 8 . Catastrophic 1 | . 1 . Database Lockouts . | . . . Manual 10 | . 10 . Terminals 13 | . 13 . Fabricators . | . . . Repair Stations . | . . . Recycling Units . | . . . Scanalyzers . | . . . Garrison Access . | . . . Terminal Hacks 3 | . 3 . Robot Analysis 1 | . 1 . Branch Access Points 1 | . 1 . Locate Traps 1 | . 1 . Fabricator Hacks . | . . . Repair Station Hacks . | . . . Recycling Unit Hacks . | . . . Scanalyzer . | . . . Garrison Access Hacks . | . . . Unauthorized Hacks 2 | . 2 . Terminals 2 | . 2 . Botnet 2 | . 2 . Fabricators . | . . . Repair Stations . | . . . Recycling Units . | . . . Scanalyzers . | . . . Garrison Access . | . . . Data Cores Recovered . | . . . Used . | . . . Hacking Detections 4 | . 4 . Full Trace Events . | . . . Feedback Events . | . . . Feedback Blocked . | . . . Robot Schematics Acquired . | . . . Robots Built . | . . . Authchips . | . . . Time . | . . . Total Robot Build Rating . | . . . Part Schematics Acquired . | . . . Parts Built . | . . . Authchips . | . . . Time . | . . . Total Part Build Rating . | . . . Parts Repaired . | . . . Time . | . . . Parts Recycled . | . . . Recycled Matter . | . . . Retrieved Matter . | . . . Retrieved Components . | . . . Parts Scanalyzed . | . . . Part Schematics Acquired . | . . . Parts Damaged . | . . . Bothacking | -11 -10 -10 ------------ Run | Yrd Mat Min Used RIF Installer . | . . . Robots Hacked . | . . . Non-combat . | . . . Combat . | . . . Robot Hacks Applied . | . . . Relay Couplers Released . | . . . Fabnet Peak Effective % . | . . . Robots Rewired . | . . . Allies Hacked . | . . . Hacks Repelled . | . . . Allies | -11 -10 -10 -------- Run | Yrd Mat Min Total Allies . | . . . Largest Group . | . . . Highest-Rated Group . | . . . Highest-Rated Ally . | . . . Total Orders . | . . . Ally Attacks . | . . . Total Damage . | . . . Kills . | . . . Allies Corrupted . | . . . Allies Melted . | . . . Intel | -11 -10 -10 ------- Run | Yrd Mat Min Robot Analysis Total 1 | . 1 . Derelict Logs Recovered . | . . . Drone Launches . | . . . Drone Recoveries . | . . . Exploration | -11 -10 -10 ------------- Run | Yrd Mat Min Turns Passed 1507 | 47 1123 337 Spaces Moved 762 | 38 532 192 Core 11 | 11 . . Treads 663 | . 471 192 Legs . | . . . Wheels 88 | 27 61 . Hover . | . . . Flight . | . . . Fastest Speed 50 | 50 100 160 Average Speed 151 | 85 153 160 Slowest Speed 160 | 100 160 160 Overloaded Moves . | . . . Propulsion Burnouts . | . . . Robots Hopped . | . . . Cave-ins Triggered . | . . . Exploration Rate (%) 41 | 3 83 39 Regions Visited 2 Branch Regions 1 Pre-discovered Areas . | . . . Known Exits Taken 1 | . 1 . Unknown Exits Taken 1 | 1 . . Scrap Searched 1 | . . 1 Spaces Dug . | . . . Terrain Destroyed . | . . . Melee . | . . . Projectile . | . . . AOE . | . . . Terrain Rammed . | . . . Walls Destroyed . | . . . Machines Disabled . | . . . Actions | -11 -10 -10 --------- Run | Yrd Mat Min Total 1003 | 52 743 208 Wait 138 | . 132 6 Move 760 | 37 531 192 Hop . | . . . Pick Up 23 | 10 11 2 Fast Attach . | . . . Attach 10 | 5 4 1 Detach . | . . . Swap 7 | . 7 . Drop 7 | . 7 . Fire 58 | . 51 7 Melee . | . . . Ram . | . . . Kick . | . . . Crush . | . . . Escape Stasis . | . . . Rewire . | . . . Trap . | . . . Miscellaneous . | . . . Route ------- -11/Scrapyard -10/Materials (discovered 4 exits: [*Mat x2] / *Min x2) -10/Mines (discovered 2 exits: [*Mat x2]) History --------- Turn | Location | Event 26 | -11/Scrapyard | Discovered new exit (range 16) 48 | -11/Scrapyard | Entered Materials 111 | -10/Materials | Discovered new exit (range 11) 306 | -10/Materials | Build established: Mutant 495 | -10/Materials | Discovered new exit (range 16) 544 | -10/Materials | Identified exit to Mines 886 | -10/Materials | Discovered new exit (range 6) 1032 | -10/Materials | Core integrity fell below 50% 1032 | -10/Materials | Core integrity fell below 20% 1171 | -10/Materials | Entered Mines 1207 | -10/Mines | Discovered new exit (range 15) 1272 | -10/Mines | Discovered new exit (range 7) 1508 | -10/Mines | Destroyed by G-34 Mercenary with Small Laser Last Messages --------------- 01259_ G-34 Mercenary destroyed. 01259_ Laser Drill disabled. 01262_ G-47 Trooper destroyed. 01265_ K-01 Serf collects debris. 01268_ Acquired Heat Sink. 01269_ Acquired 2 matter. 01272_ Acquired 10 matter. 01272_ EXIT=FOUND 01272_ K-01 Serf collects debris. 01279_ R-06 Scavenger collects Ion Engine. 01283_ R-06 Scavenger collects Sml. Laser. 01299_ K-01 Serf collects debris. 01372_ Searching scrap... 01372_ Found EM Pulse Gun. 01372_ Found Tractor Beam. 01372_ Found Aluminum Leg. 01372_ Found Assault Rifle. 01372_ Found 62 Matter. 01379_ Acquired Assault Rifle. 01432_ K-01 Serf collects debris. Map ----- +----------------------------------------------------+ | ???????????# ########????????? | | ??????????## [% #????????? | | ?????????## =! #????????? | | ???##????# #### #????????? | | ??## #???# #??# #????????? | | ??# #??## ##??# ???????? | | ??# ##?## ##???# ??????? | | ???# #### < ##???#######?????? | | ????# ## ##??????????????? | | ?????# ## ##?????????????? | | ?????## #### #?????????????? | | ??????######??# #?????????????? | | ?????????????## ##?????????????? | | ?????????????# ##??????????????? | | ?????????????# ##???????????????? | | ?????????????# ################ | | ?????????????# | | ??????######### | | ??????# ########### ########## | | ??????# #### ########## ##???????? | | ??????# #### #???????? | | ??????# ## ##????# | | ??????# ########### ### | | ?????## """ ##???#### | | ????## """ #??## | | ???## """@ #### | | ???# | | ??## ### g ## | | ??# ##?# ############ | | ??# ###??# #???????????# """ | | ??## ##????# ???????????? """ ## | | ???###?????## ??????????? """ #? | | ????????????## ?????????? ? #? | | ?????????????? ????????? ??? | | ??????????????# ##???????? ??? | | ???????????????# #?????????? ??? | | ???????????????? ?????????? #?? | | ????????????????## ?????????? ?#???? | | ?????????????????? ????????????????? | | ???????????????????????????????????? | | ???????????????????????????????????? | | ???????????????????????????????????? | | ???????????????????????????????????? | | ???????????????????????????????????? | | ???????????????????????????????????? | | | | | | | | | | | +----------------------------------------------------+ Best States ------------- Heat Dissipation 35 Energy Generation 10 Energy Capacity 250 Matter Stores 300 Matter Capacity 300 Sight Range 16 Terrain Scan Density 10 Evasion (%) 50 Targeting Accuracy 5 Recoil Reduction 2 Item Schematics ----------------- None Robot Schematics ------------------ None Fabricated ------------ Nothing Alien Tech Used ----------------- None Achievements -------------- None Challenges ------------ None Game ------ Seed DataBattleWings Manual? 0 Play Time 00:07:19 Cumulative 94.0 hours Start 2024.11.01 @ 19:43:56 End 2024.11.01 @ 19:58:52 Sessions 1 Manual Loads 0 Difficulty Rogue Special Mode None Game No. 150 Rogue 149 Adventurer 1 Explorer 0 Win Type - Total 1 Types 0/0/0/1/0/0/0/0/0 Lore% 56 Gallery% 56 Achievement% 46 Wizard Run 0 Options --------- Layout 1 ASCII 0 Keyboard 0 Movement Mouse Keybinds 0 Fullscreen 2 Font 24/Terminus Map View 50x35 Zoom Use 0% Tactical HUD 1 Map Filters NONE Filters NONE Steam 1 RUN: ff9a5391-71f5-4c72-a554-dde6a56c5b2e